bitfinex-derivatives/quotes_SOLF0:USTF0_20250923
["timestamp","ask_amount","ask_price","bid_price","bid_amount"]
[1758587826589,1.41562314,220.98,220.79,63.3509]
[1758587826888,7.01,220.95,220.88,7.26]
[1758587827093,7.01,220.95,220.88,8.67562314]
[1758587827297,12.08850057,220.99,220.92,8.67562314]
[1758587827694,7.01,220.99,220.92,8.67562314]
[1758587828096,7.01,220.99,220.95,11.3295]
[1758587828297,7.01,220.99,220.96,7.26]
[1758587828896,342.24,221.01,220.96,7.26]
[1758587829092,7.63192924,221.04,220.96,1.41562314]
[1758587829093,5.07850057,221.04,220.96,1.41562314]
[1758587829297,12.08850057,221.05,220.96,1.41562314]
[1758587829590,7.01,221.04,221.0,4.0686]
[1758587831495,5.07850057,221.07,221.03,7.26]
[1758587831697,7.01,221.07,221.03,7.26]
[1758587833000,7.01,221.08,221.03,7.26]
[1758587833207,7.01,221.09,221.03,7.26]
[1758587834102,7.01,221.07,221.03,7.26]
[1758587834398,8.42562314,221.05,220.94,8.67562314]
[1758587834602,8.42562314,221.05,220.91,7.26]
[1758587834603,7.01,220.99,220.91,7.26]
[1758587834797,3.29804205,220.98,220.93,4.0699]
[1758587834997,3.29804205,220.98,220.94,7.26]
[1758587836209,3.29804205,220.97,220.94,7.26]
[1758587836507,3.29804205,220.96,220.94,7.26]
[1758587836707,1.41562314,221.0,220.94,7.26]
[1758587836907,10.64776609,220.99,220.95,4.0697]
[1758587837108,3.29776609,220.98,220.95,4.0697]
[1758587837705,3.29776609,220.97,220.95,4.0697]
[1758587838004,3.29776609,220.96,220.95,4.0697]
[1758587838410,3.29776609,220.96,220.93,6.9]
[1758587838709,3.29776609,220.95,220.93,6.9]
[1758587838911,3.29776609,220.94,220.93,6.9]
[1758587840015,3.29776609,220.94,220.93,10.97]
[1758587840816,7.35,220.99,220.96,4.0695]
[1758587842914,5.07850057,221.01,220.93,6.9]
[1758587842915,7.35,221.0,220.93,10.97]
[1758587843414,7.35,221.0,220.93,6.9]
[1758587844818,7.35,221.0,220.95,4.0696]
[1758587845019,5.07850057,221.01,220.95,4.0696]
[1758587845218,7.35,221.0,220.95,4.0696]
[1758587845417,7.35,220.99,220.95,4.0696]
[1758587845615,1.41562314,221.0,220.95,4.0696]
[1758587845916,7.35,220.99,220.95,4.0696]
[1758587846113,1.41562314,221.0,220.95,4.0696]
[1758587846313,6.49412371,221.0,220.95,4.0696]
[1758587846513,7.35,220.99,220.95,4.0696]
[1758587846714,6.49412371,221.0,220.95,4.0696]
[1758587846913,1.41562314,221.0,220.95,4.0696]
[1758587847112,7.35,220.99,220.95,4.0696]
[1758587847313,1.41562314,221.0,220.95,4.0696]
[1758587847622,7.35,220.99,220.95,4.0696]
[1758587847822,1.41562314,221.0,220.95,4.0696]
[1758587848020,7.35,220.99,220.95,4.0696]
[1758587848217,1.41562314,221.0,220.95,4.0696]
[1758587848520,11.35817811,221.04,220.95,4.0696]
[1758587848715,7.35,221.03,220.95,4.0696]
[1758587848915,4.0684,221.02,220.92,4.0701]
[1758587849117,14.64007811,221.01,220.88,6.9]
[1758587849521,7.35,220.99,220.88,6.9]
[1758587850515,4.0691,220.98,220.9,4.0704]
[1758587850720,7.53,220.97,220.9,4.0704]
[1758587851019,5.07850057,220.99,220.92,4.0702]
[1758587851224,12.60850057,221.02,220.93,7.23]
[1758587851425,7.53,221.02,220.93,7.23]
[1758587851722,7.53,221.02,220.96,11.2995]
[1758587852824,3.28388932,221.01,220.96,11.2995]
[1758587853023,10.81388932,221.0,220.96,11.2995]
[1758587853223,3.28388932,220.99,220.96,11.2995]
[1758587853524,3.28388932,220.98,220.96,11.2995]
[1758587853719,3.28388932,220.97,220.93,4.0699]
[1758587854022,3.28388932,220.96,220.93,4.0699]
[1758587854418,3.28388932,220.96,220.93,11.2999]
[1758587857726,3.28388932,220.96,220.94,7.23]
[1758587862124,3.28388932,220.96,220.9,4.0704]
[1758587862324,7.53,220.94,220.9,11.3004]
[1758587862534,3.28388932,220.93,220.9,11.3004]
[1758587863228,3.28388932,220.93,220.91,7.23]
[1758587864233,3.28388932,220.92,220.91,7.23]
[1758587864531,3.28388932,220.93,220.91,7.23]
[1758587866529,3.28388932,220.93,220.91,4.0702]
[1758587866729,3.28388932,220.92,220.91,4.0702]
[1758587867028,3.28388932,220.97,220.91,4.0702]
[1758587867233,3.28388932,220.96,220.91,4.0702]
[1758587867426,3.28388932,220.95,220.92,4.0701]
[1758587867629,3.28388932,220.94,220.93,7.23]
[1758587868026,3.29440596,220.96,220.95,7.23]
[1758587868331,3.29446948,220.96,220.9,7.23]
[1758587868636,3.29446948,220.95,220.89,63.323]
[1758587868835,3.29446948,220.94,220.93,4.0699]
[1758587869027,3.29446948,220.94,220.93,11.2999]
[1758587872339,3.29446948,220.94,220.93,7.23]
[1758587872636,10.82446948,220.94,220.87,7.23]
[1758587872941,3.29446948,220.93,220.87,7.23]
[1758587873138,3.29446948,220.92,220.86,7.23]
[1758587873440,3.29446948,220.91,220.86,7.23]
[1758587873643,3.29446948,220.9,220.86,7.23]
[1758587873841,3.29446948,220.89,220.85,63.3351]
[1758587874041,3.29446948,220.88,220.87,7.23]
[1758587877440,3.29446948,220.88,220.86,4.0713]
[1758587877645,7.53,220.95,220.86,4.0713]
[1758587877938,8.36418114,220.94,220.84,104.53652272]
[1758587878244,7.53,220.92,220.84,104.53652272]
[1758587878543,9.14840057,220.94,220.84,104.53652272]
[1758587878544,7.53,220.9,220.84,104.53652272]
[1758587878743,7.53,220.88,220.84,104.53652272]
[1758587878945,3.28568057,220.87,220.85,7.23]
[1758587880346,3.28568057,220.87,220.84,104.53652272]
[1758587880643,3.28568057,220.86,220.84,97.30652272]
[1758587880845,7.53,220.89,220.85,7.02]
[1758587881034,3.28836728,220.88,220.85,7.02]
[1758587881239,3.28836728,220.87,220.85,7.02]
[1758587881435,6.91,220.92,220.89,4.0707]
[1758587881745,5.07850057,220.99,220.91,9.23157754]
[1758587881936,11.98850057,221.0,220.93,4.07]
[1758587882133,11.98850057,221.0,220.91,9.23157754]
[1758587882134,5.07850057,220.99,220.91,9.23157754]
[1758587883336,5.07850057,220.99,220.92,4.0702]
[1758587883843,5.07850057,220.99,220.94,4.0698]
[1758587884039,11.98850057,220.99,220.95,7.02]
[1758587884252,6.91,220.98,220.95,7.02]
[1758587884938,5.07850057,220.99,220.94,4.0698]
[1758587885143,5.07850057,221.01,220.96,11.0895]
[1758587885345,11.98850057,221.01,220.96,11.0895]
[1758587886049,11.98850057,221.01,220.97,7.02]
[1758587886347,5.07850057,221.02,220.96,4.0695]
[1758587886546,6.91,221.0,220.96,4.0695]
[1758587887040,5.07850057,221.02,220.96,4.0695]
[1758587887236,6.91,221.0,220.96,4.0695]
[1758587887440,5.07850057,221.01,220.96,4.0695]
[1758587888945,6.91,221.0,220.96,4.0695]
[1758587889146,5.07850057,221.01,220.96,4.0695]
[1758587889346,5.07850057,221.02,220.96,4.0695]
[1758587890254,5.07850057,221.02,220.93,7.02]
[1758587890255,6.91,221.01,220.93,7.02]
[1758587890451,11.98850057,221.01,220.93,7.02]
[1758587891451,5.07850057,221.0,220.93,7.02]
[1758587892049,5.07850057,221.0,220.89,63.3232]
[1758587892050,11.98850057,220.99,220.89,11.0906]
[1758587892256,6.91,220.98,220.89,11.0906]
[1758587892646,6.91,220.98,220.91,4.0703]
[1758587893454,3.27129925,220.97,220.91,4.0703]
[1758587893655,10.18129925,220.96,220.92,7.02]
[1758587893854,3.27129925,220.95,220.92,7.02]
[1758587894055,3.27129925,220.94,220.92,7.02]
[1758587894357,10.18129925,220.93,220.89,7.02]
[1758587894656,3.27129925,220.92,220.89,7.02]
[1758587894848,3.27129925,220.92,220.88,4.0708]
[1758587895449,3.27129925,220.92,220.89,7.62]
[1758587895651,3.27129925,220.92,220.88,4.0708]
[1758587895852,3.27129925,220.92,220.89,7.62]
[1758587896054,3.27129925,220.92,220.88,4.0708]
[1758587896447,3.27129925,220.92,220.9,4.0706]
[1758587896650,3.27129925,220.92,220.9,11.6906]
[1758587900955,3.27129925,220.92,220.91,7.62]
[1758587901155,5.07850057,220.99,220.93,11.69]
[1758587902053,12.47850057,221.01,220.93,11.69]
[1758587902455,5.07850057,221.0,220.93,11.69]
[1758587904256,5.07850057,221.0,220.91,4.0704]
[1758587904257,7.4,220.99,220.91,4.0704]
[1758587904466,7.4,220.97,220.87,7.62]
[1758587904861,12.47850057,220.97,220.89,4.0708]
[1758587905865,12.47850057,220.97,220.9,11.6904]
[1758587907061,5.07850057,220.98,220.91,7.62]
[1758587907463,5.07850057,220.98,220.92,4.07]
[1758587907960,5.07850057,220.98,220.94,4.0698]
[1758587908257,7.4,220.99,220.94,4.0698]
[1758587908555,12.47850057,220.99,220.94,4.0698]
[1758587908760,7.4,220.98,220.94,4.0698]
[1758587909661,7.4,220.98,220.94,11.6898]
[1758587910454,6.99,220.98,220.94,11.6898]
[1758587911072,6.99,220.98,220.95,7.25]
[1758587911773,6.99,220.98,220.94,4.0698]
[1758587912269,6.99,220.98,220.94,11.3198]
[1758587913071,3.24388919,220.97,220.96,4.0695]
[1758587914772,3.24388919,220.97,220.94,7.25]
[1758587914967,3.24388919,220.96,220.93,4.0699]
[1758587915266,10.23388919,220.95,220.93,4.0699]
[1758587915470,3.24388919,220.94,220.93,4.0699]
[1758587915970,3.24396609,220.97,220.95,11.3196]
[1758587916171,3.24392396,220.96,220.95,4.0696]
[1758587916871,3.24392396,220.96,220.92,4.0701]
[1758587917077,3.24392396,220.95,220.92,11.3201]
[1758587917280,3.24392396,220.94,220.93,7.25]
[1758587926986,3.24392396,220.94,220.92,4.0701]
[1758587927182,3.24392396,220.93,220.92,4.0701]
[1758587927383,3.24392396,220.93,220.92,11.3201]
[1758587932095,12.06850057,220.98,220.95,4.0695]
[1758587932594,5.07850057,220.99,220.95,1.41540063]
[1758587932887,5.07850057,221.0,220.99,11.3189]
[1758587933387,5.07850057,221.0,220.93,63.3119]
[1758587933388,6.99,220.99,220.96,11.3193]
[1758587933583,6.99,220.99,220.96,4.0693]
[1758587933790,6.99,220.99,220.96,11.3193]
[1758587934190,6.99,220.99,220.96,4.0693]
[1758587936393,5.07850057,221.0,220.96,4.0693]
[1758587936594,6.99,220.99,220.96,4.0693]
[1758587936798,5.07850057,221.0,220.96,4.0693]
[1758587937288,6.99,220.99,220.96,4.0693]
[1758587937487,5.07850057,221.0,220.96,4.0693]
[1758587937687,6.99,220.99,220.96,4.0693]
[1758587937892,5.07850057,221.01,220.96,4.0693]
[1758587938285,6.99,221.0,220.96,4.0693]
[1758587938480,5.07850057,221.01,220.96,4.0693]
[1758587938681,6.99,221.0,220.96,4.0693]
[1758587938890,5.07850057,221.01,220.96,4.0693]
[1758587939088,6.99,221.0,220.96,4.0693]
[1758587939596,5.07850057,221.01,220.96,4.0693]
[1758587939893,1.41540063,220.97,220.88,7.25]
[1758587940093,6.99,220.96,220.88,7.25]
[1758587940489,6.99,220.96,220.89,1.41540063]
[1758587940993,6.99,220.96,220.91,11.4902]
[1758587941193,12.24850057,220.97,220.91,11.4902]
[1758587941693,12.24850057,220.97,220.92,4.07]
[1758587942289,5.07850057,220.97,220.92,4.07]
[1758587942489,7.17,220.96,220.92,4.07]
[1758587942797,5.07850057,220.98,220.94,11.4898]
[1758587943095,12.24850057,220.98,220.94,11.4898]
[1758587943298,5.07850057,220.98,220.94,11.4898]
[1758587943489,7.17,220.97,220.94,11.4898]
[1758587944096,3.22883944,220.96,220.94,11.4898]
[1758587944398,3.22883944,220.95,220.94,11.4898]
[1758587947599,3.22883944,220.95,220.94,4.0698]
[1758587947999,7.17,220.94,220.91,4.0703]
[1758587948300,3.22883944,220.93,220.91,11.4903]
[1758587948502,3.22883944,220.92,220.91,11.4903]
[1758587951298,7.17,220.96,220.93,4.07]
[1758587951493,5.07850057,220.98,220.93,4.07]
[1758587951494,3.22957355,220.95,220.93,4.07]
[1758587951690,3.22957355,220.94,220.93,4.07]
[1758587953994,3.22957355,220.94,220.91,4.0704]
[1758587954199,10.39957355,220.93,220.91,4.0704]
[1758587954401,3.22957355,220.92,220.91,4.0704]
[1758587955500,3.22957355,220.92,220.91,11.4904]
[1758587958999,7.355e-05,220.92,220.91,11.4904]
[1758587959317,7.11,220.97,220.91,7.42]
[1758587959803,7.11,220.97,220.93,4.0699]
[1758587960004,1.41540063,220.98,220.93,11.1999]
[1758587960297,7.11,220.97,220.93,4.0699]
[1758587960697,1.41540063,220.98,220.93,4.0699]
[1758587961096,7.11,220.97,220.93,4.0699]
[1758587961393,1.41540063,220.98,220.93,4.0699]
[1758587961800,7.11,220.97,220.93,4.0699]
[1758587962006,6.4939012,220.98,220.93,4.0699]
[1758587962397,7.11,220.97,220.93,4.0699]
[1758587962702,6.4939012,220.98,220.93,4.0699]
[1758587962904,7.11,220.97,220.93,4.0699]
[1758587963497,6.4939012,220.98,220.93,4.0699]
[1758587963794,7.11,220.97,220.93,4.0699]
[1758587963995,6.4939012,220.98,220.93,4.0699]
[1758587964192,6.4939012,220.98,220.9,7.13]
[1758587964193,1.41540063,220.96,220.91,4.0704]
[1758587964498,7.11,220.95,220.91,11.2004]
[1758587967105,7.11,220.95,220.91,7.13]
[1758587967607,1.41540063,220.96,220.9,4.0704]
[1758587967907,8.52540063,220.94,220.86,7.13]
[1758587968809,8.52540063,220.94,220.88,4.0708]
[1758587969003,8.52540063,220.94,220.88,7.13]
[1758587969606,7.11,220.93,220.91,7.13]
[1758587969806,6.4939012,220.96,220.91,7.13]
[1758587970003,7.11,220.95,220.91,7.13]
[1758587970306,6.4939012,220.96,220.91,7.13]
[1758587970506,6.4939012,220.96,220.9,4.0704]
[1758587970807,7.55,220.95,220.9,4.0704]
[1758587971008,3.20069077,220.94,220.9,4.0704]
[1758587971209,10.75069077,220.93,220.9,10.9704]
[1758587971403,3.20069077,220.92,220.9,10.9704]
[1758587971604,3.20069077,220.91,220.9,10.9704]
[1758587972108,3.20069077,220.91,220.9,4.0704]
[1758587972802,3.20069077,220.91,220.9,10.9704]
[1758587973107,3.20069077,220.91,220.87,4.071]
[1758587973306,3.20069077,220.9,220.88,6.9]
[1758587973506,3.20069077,220.89,220.88,6.9]
[1758587973804,7.55,220.88,220.85,10.9715]
[1758587974005,3.20069077,220.87,220.85,10.9715]
[1758587974215,3.20069077,220.86,220.85,10.9715]
[1758587978913,3.20069077,220.86,220.82,4.0719]
[1758587979214,3.20069077,220.85,220.83,6.9]
[1758587979414,7.55,220.89,220.83,6.9]
[1758587979614,7.55,220.87,220.83,6.9]
[1758587979917,10.74825847,220.86,220.83,6.9]
[1758587980121,3.19825847,220.85,220.83,6.9]
[1758587980415,7.55,220.86,220.83,6.9]
[1758587980606,3.19772356,220.85,220.83,6.9]
[1758587980804,7.55,220.86,220.83,6.9]
[1758587981010,3.19772356,220.85,220.83,6.9]
[1758587981209,7.55,220.86,220.83,6.9]
[1758587981415,3.19736234,220.85,220.83,6.9]
[1758587981615,7.55,220.86,220.83,6.9]
[1758587981807,3.19736234,220.85,220.83,6.9]
[1758587982008,7.55,220.86,220.83,6.9]
[1758587982208,3.19736234,220.85,220.83,6.9]
[1758587982410,7.55,220.86,220.83,6.9]
[1758587982611,3.19709059,220.85,220.83,6.9]
[1758587982913,7.55,220.86,220.83,6.9]
[1758587983115,3.19709059,220.85,220.83,6.9]
[1758587983316,7.55,220.86,220.83,6.9]
[1758587983614,3.19691292,220.85,220.83,6.9]
[1758587983808,7.55,220.86,220.83,6.9]
[1758587984008,3.19691292,220.85,220.83,6.9]
[1758587984305,7.55,220.86,220.83,6.9]
[1758587984509,3.19681976,220.85,220.83,6.9]
[1758587984714,7.55,220.86,220.83,6.9]
[1758587984916,3.19681976,220.85,220.83,6.9]
[1758587985214,7.55,220.86,220.83,6.9]
[1758587985416,3.19649013,220.85,220.83,6.9]
[1758587985716,7.55,220.85,220.83,6.68103969]
[1758587988515,4.0706,220.91,220.82,10.9719]
[1758587988714,3.19560888,220.9,220.82,10.9719]
[1758587988914,10.74560888,220.89,220.82,10.9719]
[1758587989114,3.19560888,220.88,220.82,4.0719]
[1758587989319,3.19560888,220.87,220.82,4.0719]
[1758587989513,10.74560888,220.86,220.82,10.9719]
[1758587989712,7.55,220.86,220.82,10.9719]
[1758587990318,7.55,220.86,220.83,6.9]
[1758587991316,2.2125514,220.92,220.77,174.1956]
[1758587991614,10.74545119,220.91,220.85,6.9]
[1758587991916,7.55,220.89,220.85,6.9]
[1758587992118,3.19545119,220.88,220.85,6.9]
[1758587992314,3.19545119,220.87,220.84,4.0716]
[1758587992519,3.19545119,220.86,220.85,6.9]
[1758587992918,3.19545119,220.88,220.85,6.9]
[1758587993219,7.55,220.93,220.85,6.9]
[1758587993417,7.55,220.91,220.87,4.0711]
[1758587993720,3.19500301,220.9,220.87,10.9711]
[1758587994113,3.19500301,220.9,220.88,6.9]
[1758587994516,3.19500301,220.9,220.89,10.9708]
[1758587994816,7.55,220.94,220.9,6.9]
[1758587995022,3.19509498,220.93,220.9,6.9]
[1758587995219,3.19509498,220.92,220.9,6.9]
[1758587995418,3.19509498,220.91,220.9,6.9]
[1758587996826,10.74509498,220.91,220.87,6.9]
[1758587997024,3.19509498,220.9,220.84,6.9]
[1758587997226,3.19509498,220.89,220.84,6.9]
[1758587997427,7.55,220.91,220.84,6.9]
[1758587997722,3.19651621,220.9,220.84,6.9]
[1758587997917,3.19651621,220.89,220.83,2.2125514]
[1758587998121,3.19651621,220.88,220.83,2.2125514]
[1758587998327,7.55,220.91,220.84,6.9]
[1758587998626,3.19702372,220.9,220.87,4.071]
[1758587998924,3.19702372,220.89,220.88,6.9]
[1758587999322,7.55,220.94,220.89,4.0708]
[1758587999519,10.7468147,220.93,220.89,10.9708]
[1758587999715,3.1968147,220.92,220.9,6.9]
[1758587999925,3.1968147,220.91,220.9,6.9]
[1758588000721,3.1968147,220.91,220.83,2.2125514]
[1758588000722,3.1968147,220.91,220.87,7.15]
[1758588000919,3.1968147,220.9,220.86,4.0712]
[1758588001118,3.1968147,220.89,220.87,7.15]
[1758588001322,5.07850057,220.97,220.87,4.0709]
[1758588001527,10.35709172,220.96,220.87,4.0709]
[1758588001824,7.16,220.94,220.87,4.0709]
[1758588002128,7.16,220.92,220.84,4.0715]
[1758588002328,3.19709172,220.91,220.84,11.2215]
[1758588002528,3.19709172,220.91,220.84,7.15]
[1758588003831,3.19709172,220.91,220.85,4.0713]
[1758588004337,3.19709172,220.9,220.85,4.0713]
[1758588004527,10.35709172,220.89,220.85,11.2213]
[1758588004826,3.19709172,220.88,220.85,11.2213]
[1758588005129,10.35709172,220.88,220.85,11.2213]
[1758588005330,3.19709172,220.87,220.85,11.2213]
[1758588006532,3.19709172,220.87,220.86,7.15]
[1758588006831,3.19709172,220.9,220.86,7.15]
[1758588007133,10.35709172,220.89,220.86,7.15]
[1758588007333,3.19709172,220.88,220.86,7.15]
[1758588010035,10.35709172,220.88,220.85,11.2214]
[1758588010234,3.19709172,220.87,220.85,11.2214]
[1758588010835,7.16,220.85,220.78,7.15]
[1758588011029,3.19709172,220.84,220.78,7.15]
[1758588011630,7.16,220.83,220.8,4.0723]
[1758588011838,7.16,220.83,220.8,11.2223]
[1758588013734,3.20198086,220.82,220.77,4.0729]
[1758588013937,6.2832514,220.89,220.78,7.15]
[1758588014135,10.36199426,220.88,220.78,7.15]
[1758588014437,9.3725514,220.86,220.75,7.15]
[1758588014738,7.16,220.84,220.75,7.15]
[1758588014938,7.16,220.82,220.75,7.15]
[1758588015138,3.20199426,220.81,220.75,7.15]
[1758588015439,3.20199426,220.8,220.74,7.15]
[1758588015638,3.20199426,220.79,220.74,7.15]
[1758588015836,7.16,220.82,220.76,4.0731]
[1758588016141,7.24,220.8,220.76,11.0231]
[1758588016340,10.46428878,220.79,220.76,4.0731]
[1758588016636,7.24,220.85,220.74,6.95]
[1758588016843,7.24,220.83,220.74,6.95]
[1758588017038,7.24,220.81,220.74,6.95]
[1758588017236,3.22360538,220.8,220.74,6.95]
[1758588017835,7.24,220.79,220.73,4.0735]
[1758588018042,3.22360538,220.78,220.73,4.0735]
[1758588018236,7.24,220.82,220.73,4.0735]
[1758588018438,7.24,220.8,220.73,4.0735]
[1758588018641,7.24,220.78,220.73,4.0735]
[1758588018836,7.24,220.82,220.73,4.0735]
[1758588019037,7.24,220.8,220.73,4.0735]
[1758588019238,7.24,220.78,220.71,6.95]
[1758588019440,3.22169256,220.77,220.71,6.95]
[1758588019640,7.24,220.78,220.71,6.95]
[1758588019840,3.2205974,220.77,220.71,6.95]
[1758588020041,7.24,220.78,220.71,6.95]
[1758588020246,7.24,220.76,220.7,4.0741]
[1758588020442,3.24271486,220.75,220.7,4.0741]
[1758588020647,7.24,220.74,220.71,6.95]
[1758588020844,2.2125514,220.8,220.7,4.0741]
[1758588021147,10.48271486,220.79,220.68,6.95]
[1758588021348,7.24,220.77,220.68,6.95]
[1758588021649,3.24271486,220.76,220.68,6.95]
[1758588021849,7.24,220.77,220.68,6.95]
[1758588022051,3.2412976,220.76,220.68,6.95]
[1758588022243,7.24,220.77,220.68,6.95]
[1758588022452,3.24002657,220.76,220.68,6.95]
[1758588022649,3.24002657,220.75,220.68,6.95]
[1758588022848,7.24,220.77,220.69,4.0744]
[1758588023044,3.24015754,220.76,220.69,4.0744]
[1758588023349,7.24,220.77,220.69,4.0744]
[1758588023548,7.24,220.75,220.69,4.0744]
[1758588025153,7.24,220.73,220.69,11.0244]
[1758588025454,4.0726,220.79,220.69,11.0244]
[1758588025656,7.24,220.77,220.69,11.0244]
[1758588025951,7.24,220.75,220.69,11.0244]
[1758588026154,7.24,220.73,220.69,11.0244]
[1758588026356,7.24,220.79,220.69,11.0244]
[1758588026548,3.23556466,220.78,220.69,11.0244]
[1758588026854,7.24,220.76,220.69,11.0244]
[1758588027045,3.23556466,220.75,220.69,11.0244]
[1758588027246,7.24,220.76,220.69,11.0244]
[1758588027446,3.23430503,220.75,220.69,11.0244]
[1758588027651,7.24,220.76,220.69,11.0244]
[1758588027848,3.23430503,220.75,220.69,11.0244]
[1758588028045,7.24,220.76,220.69,11.0244]
[1758588028251,3.23430503,220.75,220.69,11.0244]
[1758588028450,7.24,220.76,220.69,11.0244]
[1758588028651,3.23317948,220.75,220.69,11.0244]
[1758588028847,7.24,220.76,220.69,11.0244]
[1758588029044,3.23317948,220.75,220.69,11.0244]
[1758588029245,7.24,220.76,220.69,11.0244]
[1758588029849,7.24,220.79,220.69,11.0244]
[1758588030052,3.23223548,220.78,220.69,11.0244]
[1758588030254,3.23223548,220.77,220.69,11.0244]
[1758588030453,3.23223548,220.76,220.69,11.0244]
[1758588030650,3.23146011,220.75,220.69,11.0244]
[1758588030851,7.3,220.76,220.69,11.0244]
[1758588031157,2.2125514,220.77,220.69,11.0244]
[1758588031352,7.3,220.75,220.69,11.0244]
[1758588032160,7.3,220.76,220.68,4.0746]
[1758588032457,7.3,220.74,220.67,7.54]
[1758588032659,1.41896685,220.72,220.63,110.78]
[1758588032859,1.41896685,220.72,220.64,7.54]
[1758588033758,1.41896685,220.72,220.66,4.0749]
[1758588033958,1.41896685,220.72,220.66,11.6149]
[1758588035348,1.41896685,220.7,220.62,7.54]
[1758588035552,63.3596,220.77,220.62,7.54]
[1758588035553,1.41896685,220.68,220.62,7.54]
[1758588035752,1.41896685,220.66,220.58,7.54]
[1758588036153,1.41896685,220.68,220.58,7.54]
[1758588036452,1.41896685,220.66,220.6,7.54]
[1758588037149,1.41896685,220.64,220.59,4.0762]
[1758588037352,7.3,220.63,220.6,7.54]
[1758588041056,7.3,220.63,220.56,4.0767]
[1758588041057,7.3,220.63,220.57,7.54]
[1758588041551,7.3,220.63,220.59,4.0762]
[1758588041756,7.3,220.63,220.59,11.6162]
[1758588042962,7.3,220.68,220.61,1.41896685]
[1758588043161,7.3,220.71,220.64,7.54]
[1758588043361,3.22154387,220.7,220.64,7.54]
[1758588043660,7.3,220.71,220.64,7.54]
[1758588043857,3.2211413,220.7,220.67,4.0747]
[1758588044069,7.3,220.73,220.67,7.54]
[1758588044366,7.3,220.73,220.67,8.95896685]
[1758588044560,1.41896685,220.76,220.67,8.95896685]
[1758588044872,3.2210169,220.75,220.67,8.95896685]
[1758588045059,7.3,220.77,220.67,8.95896685]
[1758588045358,1.41896685,220.73,220.67,11.6147]
[1758588046264,7.3,220.81,220.7,64.79606685]
[1758588046462,3.22111041,220.8,220.71,7.54]
[1758588046662,3.22111041,220.79,220.71,7.54]
[1758588046862,3.22111041,220.79,220.7,64.79606685]
[1758588046863,10.52111041,220.78,220.74,11.6134]
[1758588047056,7.3,220.82,220.75,7.54]
[1758588047262,58.26123386,220.81,220.75,7.54]
[1758588047462,3.22123386,220.8,220.7,64.79606685]
[1758588047768,7.3,220.79,220.71,7.54]
[1758588048062,82.32,220.82,220.75,11.6132]
[1758588048359,3.22202595,220.81,220.77,7.54]
[1758588048672,3.22202595,220.8,220.77,4.0729]
[1758588048869,110.8,220.85,220.78,7.54]
[1758588049078,10.52244258,220.84,220.78,7.54]
[1758588049379,7.3,220.82,220.78,7.54]
[1758588049556,3.22244258,220.81,220.77,4.0729]
[1758588049761,3.22244258,220.81,220.78,7.54]
[1758588050060,3.22244258,220.8,220.77,4.0729]
[1758588050260,118.12,220.85,220.77,11.6129]
[1758588050461,3.22456892,220.84,220.8,7.54]
[1758588050669,3.22456892,220.83,220.8,7.54]
[1758588050867,3.22456892,220.82,220.75,1.41896685]
[1758588051168,1.41896685,220.84,220.77,4.0729]
[1758588051467,3.20762282,220.83,220.77,4.0729]
[1758588051666,10.50762282,220.82,220.77,11.6129]
[1758588051869,3.20762282,220.81,220.77,11.6129]
[1758588052168,3.20762282,220.81,220.78,7.54]
[1758588053961,9.32493992,220.86,220.78,7.54]
[1758588054164,3.21119193,220.85,220.78,7.54]